fUSD/lending_fUSD_20240919
["ID","MTS","AMOUNT","RATE_DAILY","PERIOD"]
[338576484,1726743042708,-1160.60801783,0.00013162,2]
[338576486,1726743042719,-9756.0,0.00013162,2]
[338576488,1726743042731,-2932.17109108,0.00013162,2]
[338576490,1726743042740,-213.75514605,0.00015,2]
[338576492,1726743042751,-250983.26524667,0.00015,2]
[338576494,1726743042764,-2302589.36156925,0.00015,2]
[338576497,1726743042778,-22488.59274326,0.00015,2]
[338576499,1726743042789,-590.0,0.00015,2]
[338576501,1726743042800,-500.0,0.00015,2]
[338576593,1726743043688,-185961.00000292,0.00015,2]
[338576595,1726743043700,-93803.87329073,0.00015,2]
[338576597,1726743043712,-3484.0,0.00015,2]
[338576600,1726743043725,-390000.04763,0.00015,2]
[338576602,1726743043737,-1351.73651495,0.00015,2]
[338576604,1726743043749,-423.95581672,0.00015,2]
[338576606,1726743043761,-1300.0,0.00015,2]
[338576608,1726743043772,-319.88,0.00015,2]
[338576610,1726743043785,-9351.87391616,0.00015,2]
[338576613,1726743043798,-357.69482547,0.00015,2]
[338576615,1726743043810,-15896.8466157,0.00015,2]
[338576617,1726743043821,-8673.86875784,0.00015,2]
[338576619,1726743043833,-13057.23584385,0.00015,2]
[338576622,1726743043844,-507.53028692,0.00015,2]
[338576624,1726743043856,-1044.08377648,0.00015,2]
[338576626,1726743043867,-329.45124312,0.00015,2]
[338576628,1726743043878,-742.96054236,0.00015,2]
[338576630,1726743043889,-515.811067,0.00015,2]
[338576632,1726743043901,-475.33246739,0.00015,2]
[338576634,1726743043913,-565.99524606,0.00015,2]
[338576795,1726743045800,-150.0,0.00014763,2]
[338576797,1726743045811,-287.75929226,0.00014763,2]
[338576799,1726743045825,-150.0,0.00014783,2]
[338576802,1726743045835,-150.0,0.00014852,2]
[338576803,1726743045844,-13936.24070774,0.00015,2]
[338576814,1726743045940,-715.12352119,0.00015,2]
[338577089,1726743072373,156.63,0.00010959,2]
[338577091,1726743101075,5968.1719,0.00012661,2]
[338577093,1726743123881,500.0,0.00011164,2]
[338577094,1726743124057,500.0,0.00011164,2]
[338577095,1726743167482,580.90686752,0.00011164,2]
[338577097,1726743241925,1001.49822323,0.00014,30]
[338577098,1726743368349,320.69,0.00011626,2]
[338577101,1726743613551,155.58,0.00010959,2]
[338577102,1726743818039,251.39949522,0.00011568,2]
[338577104,1726743870019,346.19,0.00013918,30]
[338577105,1726743975417,304.65,0.00011469,2]
[338577159,1726744221920,155.71,0.00010959,2]
[338577166,1726744231831,-991.0,0.00012927,2]
[338577167,1726744231843,-500.0,0.00012927,2]
[338577168,1726744231854,-829.287875,0.00012927,2]
[338577169,1726744231864,-250.0,0.00013088,2]
[338577170,1726744231873,-903.32,0.00013092,2]
[338577171,1726744231883,-300.0,0.00013121,2]
[338577172,1726744231892,-735.51022862,0.00013122,2]
[338577173,1726744231976,-319.49959974,0.00013122,2]
[338577174,1726744232024,-735.02,0.00013122,2]
[338577175,1726744232035,-1366.00042613,0.00013122,2]
[338577176,1726744232179,-2019.02952842,0.00013122,2]
[338577189,1726744237821,-1221.19236715,0.00012988,2]
[338577190,1726744237833,-519.07829482,0.00012988,2]
[338577191,1726744237845,-511.07924537,0.00012988,2]
[338577192,1726744237854,-269.79575463,0.00013122,2]
[338577193,1726744237964,-560.73080321,0.00013122,2]
[338577194,1726744237975,-794.86802,0.00013122,2]
[338577195,1726744237987,-2123.8997036,0.00013122,2]
[338577196,1726744237998,-7279.41342549,0.00013122,2]
[338577197,1726744238010,-5943.37251016,0.00013122,2]
[338577198,1726744238019,-1287.81,0.00013155,2]
[338577199,1726744238029,-160.01,0.00013334,2]
[338577200,1726744238038,-250.0,0.00013342,2]
[338577201,1726744238048,-1000.0,0.00013361,2]
[338577202,1726744238058,-1145.42562154,0.00013374,2]
[338577203,1726744238069,-24.64437846,0.00013374,2]
[338577204,1726744238079,-300.31930136,0.00013457,2]
[338577205,1726744238091,-961.61069864,0.00013457,2]
[338577206,1726744238100,-150.99,0.00013457,2]
[338577207,1726744238110,-1817.1,0.00013457,2]
[338577208,1726744238123,-5712.1,0.00013699,2]
[338577209,1726744238134,-733.49,0.00013699,2]
[338577210,1726744238144,-304.65,0.00013733,2]
[338577211,1726744238155,-285.7631,0.00013797,2]
[338577212,1726744238166,-652.6534,0.00013797,2]
[338577213,1726744238175,-299.99,0.00013797,2]
[338577214,1726744238186,-438.0,0.00013797,2]
[338577215,1726744238196,-499.99,0.00013797,2]
[338577216,1726744238208,-500.0,0.000138,2]
[338577218,1726744238220,-500.0,0.000138,2]
[338577220,1726744238235,-500.0,0.000138,2]
[338577222,1726744238244,-247.38581052,0.000138,2]
[338577224,1726744238254,-160.93772834,0.000138,2]
[338577226,1726744238264,-641.50824216,0.0001385,2]
[338577228,1726744238274,-300.0,0.000139,5]
[338577230,1726744238283,-500.0,0.00013904,2]
[338577232,1726744238293,-500.0,0.00013904,2]
[338577234,1726744238303,-279.05,0.0001394,2]
[338577236,1726744238313,-700.0,0.00014,5]
[338577238,1726744238322,-1000.0,0.000141,5]
[338577240,1726744238331,-1400.0,0.000142,5]
[338577242,1726744238341,-1800.0,0.000143,5]
[338577243,1726744238350,-733.49,0.00014384,2]
[338577245,1726744238359,-420.0,0.00014388,2]
[338577247,1726744238370,-300.0,0.000144,5]
[338577250,1726744238379,-300.0,0.000145,5]
[338577251,1726744238389,-300.0,0.000146,5]
[338577253,1726744238398,-421.86233158,0.00014646,2]
[338577256,1726744238408,-300.0,0.000147,5]
[338577258,1726744238418,-1174.7436,0.0001475,2]
[338577261,1726744238431,-166.09423018,0.00014773,2]
[338577263,1726744238441,-5084.95406451,0.00014784,2]
[338577265,1726744238450,-500.0,0.00014794,2]
[338577267,1726744238460,-500.0,0.00014794,2]
[338577269,1726744238473,-500.0,0.00014794,2]
[338577271,1726744238482,-500.0,0.00014794,2]
[338577273,1726744238492,-500.0,0.00014794,2]
[338577275,1726744238501,-504.22074786,0.00014794,2]
[338577277,1726744238511,-3000.0,0.000148,2]
[338577279,1726744238521,-558.55,0.000148,2]
[338577281,1726744238531,-211.244,0.000148,2]
[338577283,1726744238540,-800.0,0.000148,5]
[338577285,1726744238550,-166.09423015,0.00014815,2]
[338577287,1726744238559,-152.0,0.00014839,3]
[338577289,1726744238569,-815.04,0.0001484,3]
[338577291,1726744238578,-1384.3,0.0001484,2]
[338577293,1726744238587,-19330.49254616,0.0001485,2]
[338577295,1726744238599,-4601.66309468,0.0001485,2]
[338577298,1726744238611,-161191.57012865,0.0001485,2]
[338577300,1726744238621,-166.09423015,0.00014858,2]
[338577302,1726744238631,-500.0,0.0001488,2]
[338577304,1726744238640,-200.0,0.0001488,2]
[338577306,1726744238650,-2357.80715962,0.000149,2]
[338577308,1726744238660,-153.22099425,0.000149,2]
[338577310,1726744238669,-171.17415423,0.000149,2]
[338577312,1726744238678,-156.33966159,0.000149,2]
[338577314,1726744238687,-166.09423015,0.000149,2]
[338577316,1726744238697,-1608.55957101,0.000149,2]
[338577318,1726744238707,-442.258,0.000149,2]
[338577320,1726744238720,-6441.64774224,0.0001498,3]
[338577322,1726744238729,-6441.64774224,0.0001499,3]
[338577324,1726744238739,-1384.3,0.0001499,2]
[338577326,1726744238748,-1384.3,0.0001499,2]
[338577328,1726744238757,-1384.3,0.0001499,2]
[338577330,1726744238767,-5310.6889937,0.0001499,3]
[338577332,1726744238776,-10736.0795704,0.0001499,3]
[338577334,1726744238786,-1384.3,0.0001499,2]
[338577336,1726744238795,-1478.2403859,0.00014996,2]
[338577338,1726744238805,-429.1894875,0.00014996,2]
[338577340,1726744238815,-3255.5437759,0.00014996,2]
[338577342,1726744238824,-500.0,0.00014999,2]
[338577344,1726744238834,-500.0,0.00014999,2]
[338577346,1726744238843,-614.22301512,0.00014999,2]
[338577348,1726744238852,-326.96586798,0.00014999,2]
[338577350,1726744238861,-500.0,0.00014999,2]
[338577352,1726744238871,-500.0,0.00014999,2]
[338577354,1726744238880,-500.0,0.00014999,2]
[338577356,1726744238890,-500.0,0.00014999,2]
[338577358,1726744238899,-500.0,0.00014999,2]
[338577360,1726744238908,-500.0,0.00014999,2]
[338577362,1726744238918,-500.0,0.00014999,2]
[338577364,1726744238929,-256.83075388,0.00014999,2]
[338577366,1726744238940,-500.0,0.00014999,2]
[338577368,1726744238949,-500.0,0.00014999,2]
[338577370,1726744238958,-500.0,0.00014999,2]
[338577372,1726744238970,-1000.0,0.00014999,2]
[338577374,1726744238979,-1052.4827,0.00014999,2]
[338577376,1726744238991,-150.01,0.00014999,2]
[338577378,1726744239000,-500.0,0.00014999,2]
[338577380,1726744239009,-1976.90695491,0.00015,2]
[338577382,1726744239018,-5100.19080631,0.00015,2]
[338577385,1726744239034,-5779.81155884,0.00015,2]
[338577467,1726744239792,-1347.40179064,0.00015,2]
[338577476,1726744239868,-140344.75354461,0.00015,2]
[338577478,1726744239878,-165966.45044019,0.00015,2]
[338577483,1726744239919,-3422.0802614,0.00015,2]
[338577500,1726744240068,-765.68138899,0.00015,2]
[338577506,1726744240117,-104917.59954694,0.00015,2]
[338577774,1726744242845,-605.70812265,0.00015,2]
[338577776,1726744242858,-4694.4458067,0.00015,2]
[338577788,1726744242958,-4200.0,0.00015,2]
[338577790,1726744242971,-895.78987325,0.00015,2]
[338577792,1726744242982,-2020.12,0.00015,2]
[338577794,1726744242993,-607.0402518,0.00015,2]
[338577797,1726744243005,-636.87818,0.00015,2]
[338577799,1726744243019,-709.17,0.00015,2]
[338577801,1726744243031,-490.16387713,0.00015,2]
[338577803,1726744243043,-363.33683964,0.00015,2]
[338577805,1726744243056,-2754.31674355,0.00015,2]
[338577808,1726744243067,-2541.3138532,0.00015,2]
[338577810,1726744243079,-3674.2143007,0.00015,2]
[338577812,1726744243091,-397.66172814,0.00015,2]
[338577814,1726744243102,-471.44131326,0.00015,2]
[338577816,1726744243113,-3455.53409534,0.00015,2]
[338577819,1726744243126,-1093.13811019,0.00015,2]
[338577821,1726744243138,-1023.82317081,0.00015,2]
[338577824,1726744243162,-520.26381699,0.00015,2]
[338577827,1726744243176,-827.30933768,0.00015,2]
[338577829,1726744243189,-1103.1653179,0.00015,2]
[338577831,1726744243203,-4202.89669979,0.00015,2]
[338577834,1726744243216,-412.1753019,0.00015,2]
[338577836,1726744243230,-4445.23740939,0.00015,2]
[338577838,1726744243243,-1098.75051472,0.00015,2]
[338577841,1726744243257,-341.22457789,0.00015,2]
[338577843,1726744243270,-532.59862421,0.00015,2]
[338577846,1726744243288,-1258067.11703425,0.00015,2]
[338577848,1726744243302,-341.04,0.00015,2]
[338577851,1726744243314,-12842.43697201,0.00015,2]
[338577853,1726744243325,-14265.34945311,0.00015,2]
[338577855,1726744243337,-301.616,0.00015,2]
[338577857,1726744243350,-2005.80185951,0.00015,2]
[338577860,1726744243362,-1289.86282943,0.00015,2]
[338577863,1726744243375,-432.89653833,0.00015,2]
[338577865,1726744243388,-1117.28317245,0.00015,2]
[338577868,1726744243401,-530.70724899,0.00015,2]
[338577920,1726744244166,-330.73626012,0.00015,2]
[338577922,1726744244180,-671.32315737,0.00015,2]
[338577925,1726744244194,-14460.26547633,0.00015,2]
[338577927,1726744244206,-1187.119996,0.00015,2]
[338577930,1726744244219,-767.14366818,0.00015,2]
[338577932,1726744244231,-589.37436581,0.00015,2]
[338578095,1726744245810,-891.94150928,0.00015,2]
[338578097,1726744245823,-470.08,0.00015,2]
[338578099,1726744245837,-376.58731798,0.00015,2]
[338578101,1726744245849,-462.25138963,0.00015,2]
[338578104,1726744245861,-440.82212073,0.00015,2]
[338578106,1726744245874,-1462.76416002,0.00015,2]
[338578108,1726744245887,-16344.51668327,0.00015,2]
[338578120,1726744245994,-1373.16223695,0.00015,2]
[338578122,1726744246007,-3578.38314441,0.00015,2]
[338578124,1726744246021,-2064.39225517,0.00015,2]
[338578127,1726744246034,-4643.55379647,0.00015,2]
[338578129,1726744246047,-1000.0,0.00015,2]
[338578131,1726744246062,-86110.23799385,0.00015,2]
[338578134,1726744246075,-109684.32219062,0.00015,2]
[338578136,1726744246088,-160032.32189795,0.00015,2]
[338578138,1726744246101,-285.60453231,0.00015,2]
[338578141,1726744246114,-13413.68580089,0.00015,2]
[338578143,1726744246130,-1657.21148328,0.00015,2]
[338578145,1726744246144,-3678.56594504,0.00015,2]
[338578148,1726744246158,-442.82396974,0.00015,2]
[338578150,1726744246171,-10018.96925061,0.00015,2]
[338578642,1726744301223,500.0,0.00011164,2]
[338578643,1726744302378,500.0,0.00011164,2]
[338578644,1726744407230,600.0,0.00011164,2]
[338578645,1726744408803,600.0,0.00012534,2]
[338578646,1726744457999,500.0,0.00011164,2]
[338578647,1726744475564,500.0,0.00011164,2]
[338578648,1726744624210,1050.0,0.00011,2]
[338578649,1726744647431,367.06,0.00011876,2]
[338578655,1726744850772,154.28,0.00010959,2]
[338578657,1726744947309,328.88,0.0001393,30]
[338578658,1726745186404,373.93,0.00011596,2]
[338578661,1726745347103,1335.98257,0.00012736,2]
[338578670,1726745370184,170.35434325,0.00012731,2]
[338578680,1726745411482,172.15,0.0001274,2]
[338578690,1726745432020,-1631.40836333,0.0001275,2]
[338578692,1726745432029,-250.0,0.00012831,2]
[338578694,1726745432039,-486.95290977,0.0001285,2]
[338578696,1726745432051,-144.00709023,0.0001285,2]
[338578698,1726745432062,-183.42180179,0.000129,2]
[338578700,1726745432071,-500.0,0.00012973,2]
[338578702,1726745432081,-501.17200511,0.00012973,2]
[338578704,1726745432091,-500.0,0.00012973,2]
[338578706,1726745432100,-500.0,0.00012999,2]
[338578708,1726745432109,-500.0,0.00012999,2]
[338578710,1726745432119,-421.14645601,0.00012999,2]
[338578712,1726745432129,-500.0,0.00012999,2]
[338578713,1726745432146,-500.0,0.00012999,2]
[338578714,1726745432155,-500.0,0.00012999,2]
[338578715,1726745432164,-317.59906209,0.00012999,2]
[338578716,1726745432174,-506.74743781,0.00013,2]
[338578717,1726745432186,-29219.29385109,0.00013,2]
[338578718,1726745432198,-734.6075021,0.00013,2]
[338578719,1726745432229,-903.92013879,0.00013,2]
[338578728,1726745432441,-836.89298034,0.00013,2]
[338578729,1726745432452,-7098.22734583,0.00013,2]
[338578731,1726745432468,-500.0,0.00013,2]
[338578733,1726745432480,-500.0,0.00013,2]
[338578735,1726745432493,-2300.0,0.00013,2]
[338578737,1726745432505,-15246.1140996,0.00013,2]
[338578739,1726745432517,-300.75376989,0.00013,2]
[338578741,1726745432528,-1160.3319798,0.00013,2]
[338578743,1726745432543,-61770.79668425,0.00013,2]
[338578744,1726745432552,-111801.04585652,0.00013,2]
[338578768,1726745438061,-10873.60322576,0.00013,2]
[338578769,1726745438072,-4511.48756574,0.00013,2]
[338578770,1726745438101,-750.516,0.00013,2]
[338578772,1726745438240,-14040.77864165,0.00013,2]
[338578773,1726745438252,-1190.27720264,0.00013,2]
[338578774,1726745438263,-62744.63851173,0.00013,2]
[338578881,1726745440016,-1399.79399091,0.00013,2]
[338578890,1726745440094,-28860.59698709,0.00013,2]
[338578893,1726745440106,-354778.54513999,0.00013,2]
[338578900,1726745440171,-9613.66264505,0.00013,2]
[338578902,1726745440183,-10489.42913522,0.00013,2]
[338578909,1726745440234,-1874.96246914,0.00013,2]
[338578911,1726745440245,-398.62975953,0.00013,2]
[338578915,1726745440280,-1009.71667059,0.00013,2]
[338578918,1726745440291,-3593.47834983,0.00013,2]
[338578920,1726745440302,-1746.3324078,0.00013,2]
[338578922,1726745440312,-4170.03465609,0.00013,2]
[338578924,1726745440323,-10400.0,0.00013,2]
[338578926,1726745440335,-8342.69800403,0.00013,2]
[338578928,1726745440346,-5344969.87372495,0.00013,2]
[338578930,1726745440357,-2946.68335152,0.00013,2]
[338578932,1726745440368,-88018.09762873,0.00013,2]
[338579170,1726745443111,-2734.9,0.00013,2]
[338579187,1726745443252,-900.0,0.00013,2]
[338579259,1726745443950,-415.19891996,0.00013,2]
[338579261,1726745443962,-11876.33293888,0.00013,2]
[338579263,1726745443973,-28449.13594169,0.00013,2]
[338579265,1726745443984,-23018.06022655,0.00013,2]
[338579268,1726745444000,-1912.67514071,0.00013,2]
[338579270,1726745444011,-9414.28831025,0.00013,2]
[338579272,1726745444022,-8819.29105158,0.00013,2]
[338579274,1726745444033,-595.75080776,0.00013,2]
[338579472,1726745446031,-1336.21180422,0.00013,2]
[338579475,1726745446043,-39623.6796389,0.00013,2]
[338579479,1726745446075,-20560.01656535,0.00013,2]
[338579484,1726745446116,-6277.1292,0.00013,2]
[338579499,1726745446253,-6134.45000001,0.00013,2]
[338579505,1726745446299,-12233.848,0.00013,2]
[338580840,1726745485068,900.0,0.000125,4]
[338580841,1726745487218,1800.0,0.000126,4]
[338580842,1726745489365,2700.0,0.000127,4]
[338580843,1726745501127,312.43,0.00013918,30]
[338580844,1726745503016,175.56,0.00010959,2]
[338580845,1726745657859,-250.0,0.00012744,2]
[338580846,1726745657882,-160.01,0.00012792,2]
[338580847,1726745657904,-3700.0,0.000128,4]
[338580848,1726745657925,-36889.99,0.0001287,2]
[338580851,1726745770184,392.79,0.00010694,2]
[338580852,1726745802445,2034.94,0.00012536,2]
[338580855,1726745895786,641.79,0.00012577,2]
[338580856,1726745926160,9838.08,0.00012577,2]
[338580857,1726745976967,5790.68,0.00012542,2]
[338580858,1726746129386,368.32,0.00012456,2]
[338580859,1726746167375,250.0,0.00012414,2]
[338580860,1726746169342,421.86233158,0.00012732,2]
[338580861,1726746205415,250.0,0.00012362,2]
[338580862,1726746256698,296.8,0.00013918,30]
[338580863,1726746304781,150.0,0.00011688,2]
[338580864,1726746305111,150.0,0.0001185,2]
[338580865,1726746305447,150.0,0.00012012,2]
[338580866,1726746305788,150.0,0.00012175,2]
[338580867,1726746306122,150.0,0.00012337,2]
[338580868,1726746306621,150.0,0.00012499,2]
[338580869,1726746306810,150.0,0.00012662,2]
[338580870,1726746309406,150.0,0.00011688,2]
[338580871,1726746309727,150.0,0.00011904,2]
[338580872,1726746310040,150.0,0.00012121,2]
[338580873,1726746310393,150.0,0.00012337,2]
[338580874,1726746310662,150.0,0.00012553,2]
[338580875,1726746318762,150.0,0.00011688,2]
[338580876,1726746319070,150.0,0.00012337,2]
[338580877,1726746319213,398.91,0.00010347,2]
[338580878,1726746319588,398.91,0.00012611,2]
[338580879,1726746328972,150.0,0.00011688,2]
[338580880,1726746329285,150.0,0.00012337,2]
[338580881,1726746340438,1000.0,0.00012471,2]
[338580889,1726746351837,2127.37,0.00012608,2]
[338580890,1726746443531,400.0,0.000124,4]
[338580891,1726746445789,900.0,0.000125,4]
[338580892,1726746447758,1400.0,0.000126,4]
[338580893,1726746449962,1900.0,0.000127,4]
[338580894,1726746520875,150.0,0.00012319,2]
[338580898,1726746542460,397.55,0.00012315,2]
[338580921,1726746572433,4947.24,0.00012269,2]
[338580924,1726746596437,172.11,0.00012268,2]
[338580928,1726746616568,159.14,0.00010959,2]
[338580935,1726746632104,-150.0,0.0001277,2]
[338580936,1726746632114,-1814.6323,0.0001277,2]
[338580937,1726746632123,-948.5528,0.000128,2]
[338580938,1726746632133,-369.2051,0.000128,2]
[338580939,1726746632143,-2773.05798066,0.000128,2]
[338580940,1726746632154,-499.6,0.000128,2]
[338580941,1726746632166,-737.50361934,0.000128,2]
[338580942,1726746632175,-262.39698066,0.000128,2]
[338580943,1726746632187,-1000.3932,0.000128,2]
[338580944,1726746632199,-6332.10101934,0.000128,2]
[338580945,1726746632210,-6258.09086436,0.000128,2]
[338580946,1726746632221,-782.94223564,0.000128,2]
[338580947,1726746632231,-1754.6956,0.000128,2]
[338580948,1726746632240,-943.3389,0.000128,2]
[338580949,1726746632249,-5707.528,0.000128,2]
[338580950,1726746632259,-753.85831806,0.000128,2]
[338580951,1726746632270,-2300.0,0.000128,4]
[338580952,1726746632288,-150.0,0.00012824,2]
[338580953,1726746632298,-219.868,0.0001287,2]
[338580954,1726746632307,-15715.0,0.0001287,2]
[338580955,1726746632317,-500.0,0.00012873,2]
[338580956,1726746632327,-500.0,0.00012873,2]
[338580957,1726746632336,-1474.6495,0.000129,2]
[338580958,1726746632345,-1085.2617,0.000129,2]
[338580959,1726746632355,-11662.5073847,0.000129,2]
[338580960,1726746632366,-544.02,0.000129,2]
[338580961,1726746632377,-548.6778876,0.000129,2]
[338580962,1726746632390,-2670.40920195,0.000129,2]
[338580963,1726746632401,-5099.02414876,0.000129,2]
[338580964,1726746632412,-3576.97871244,0.000129,2]
[338580965,1726746632424,-4826.7295626,0.000129,2]
[338580966,1726746632435,-438.76974543,0.000129,2]
[338580967,1726746632446,-696.77431602,0.000129,2]
[338580968,1726746632457,-1130.08,0.000129,2]
[338580969,1726746632468,-4698.91404274,0.000129,2]
[338580970,1726746632479,-657.30298068,0.000129,2]
[338580971,1726746632490,-38549.32611708,0.000129,2]
[338580972,1726746632499,-13268.6891,0.000129,2]
[338580973,1726746632509,-3343.0973,0.000129,2]
[338580974,1726746632519,-100000.0,0.000129,2]
[338580975,1726746632529,-20509.47,0.000129,2]
[338580976,1726746632539,-433.2501,0.000129,2]
[338580977,1726746632548,-946.3744,0.000129,2]
[338580978,1726746632558,-1682.2527,0.000129,2]
[338580979,1726746632567,-39005.8272,0.000129,2]
[338580980,1726746632577,-2113.7809,0.000129,2]
[338580981,1726746632587,-796.1469,0.000129,2]
[338580982,1726746632596,-168.68225784,0.000129,2]
[338580983,1726746632606,-400.0,0.000129,4]
[338580984,1726746632615,-264.59811077,0.000129,2]
[338580985,1726746632624,-601.19,0.000129,2]
[338580986,1726746632634,-168.28273339,0.000129,2]
[338580987,1726746632643,-183.42180178,0.000129,2]
[338580988,1726746632652,-338.45240327,0.000129,2]
[338580989,1726746632662,-500.94262012,0.00012973,2]
[338580990,1726746632672,-499.99,0.00012973,2]
[338580991,1726746632682,-500.0,0.00012973,2]
[338580992,1726746632691,-184.54415172,0.00012986,2]
[338580993,1726746632700,-248.41098926,0.00012986,2]
[338580994,1726746632710,-153.41658734,0.00012986,2]
[338580995,1726746632719,-150.87819279,0.00012986,2]
[338580996,1726746632729,-150.56,0.0001299,2]
[338580997,1726746632739,-500.0,0.00012999,2]
[338580998,1726746632753,-500.0,0.00012999,2]
[338580999,1726746632763,-183.23314245,0.00012999,2]
[338581000,1726746632778,-203.8332418,0.00012999,2]
[338581001,1726746632787,-500.0,0.00012999,2]
[338581002,1726746632798,-500.0,0.00012999,2]
[338581003,1726746632808,-511.14405451,0.00012999,2]
[338581004,1726746632818,-144014.14066396,0.00013,2]
[338581005,1726746632827,-20093.27,0.00013,2]
[338581006,1726746632837,-810494.00963637,0.00013,2]
[338581007,1726746632998,-18600.0,0.00013,2]
[338581009,1726746638287,-291.8458,0.000128,2]
[338581010,1726746638296,-3461.12918577,0.00013,2]
[338581011,1726746638341,-529.12011047,0.00013,2]
[338581012,1726746638353,-719.66550446,0.00013,2]
[338581013,1726746638395,-925.30673529,0.00013,2]
[338581014,1726746638568,-408.64874944,0.00013,2]
[338581015,1726746638579,-4410.0552091,0.00013,2]
[338581016,1726746640127,-1209.54095137,0.00013,2]
[338581017,1726746640182,-152371.48742418,0.00013,2]
[338581018,1726746640195,-87108.1858664,0.00013,2]
[338581019,1726746640207,-71206.53664946,0.00013,2]
[338581020,1726746640236,-857.69234347,0.00013,2]
[338581021,1726746640248,-30168.90623135,0.00013,2]
[338581022,1726746640260,-312.60966571,0.00013,2]
[338581023,1726746640290,-1181.8693022,0.00013,2]
[338581024,1726746640302,-19768.09950954,0.00013,2]
[338581025,1726746640347,-265.1286,0.00013,2]
[338581026,1726746640358,-3729.54558157,0.00013,2]
[338581027,1726746640401,-791.81406173,0.00013,2]
[338581028,1726746640413,-863.3110572,0.00013,2]
[338581029,1726746640424,-740.07,0.00013,2]
[338581030,1726746640435,-23713.43801055,0.00013,2]
[338581091,1726746643332,-44550.86405831,0.00013,2]
[338581092,1726746643344,-28769.59002502,0.00013,2]
[338581093,1726746643355,-449.242,0.00013,2]
[338581094,1726746643367,-616.04543528,0.00013,2]
[338581095,1726746643379,-250.69,0.00013,2]
[338581096,1726746643391,-15794.86458459,0.00013,2]
[338581097,1726746643402,-9029.48,0.00013,2]
[338581098,1726746643414,-3926.88633819,0.00013,2]
[338581100,1726746643957,-7452.15383484,0.00013,2]
[338581101,1726746643969,-2654.64403753,0.00013,2]
[338581102,1726746643980,-49270.15551202,0.00013,2]
[338581103,1726746643992,-485.07236791,0.00013,2]
[338581104,1726746644004,-734.35182804,0.00013,2]
[338581105,1726746644015,-5229.11524229,0.00013,2]
[338581106,1726746646288,-511.4223,0.00013,2]
[338581107,1726746646337,-26766.2388339,0.00013,2]
[338581108,1726746646348,-1143.97892178,0.00013,2]
[338581109,1726746646361,-3306.08783322,0.00013,2]
[338581110,1726746646394,-15714.2461679,0.00013,2]
[338581111,1726746646405,-7895.18987708,0.00013,2]
[338581112,1726746646417,-2522.7804,0.00013,2]
[338581113,1726746646448,-1394.51005659,0.00013,2]
[338581114,1726746646460,-77176.3203611,0.00013,2]
[338581115,1726746646557,-269.38241397,0.00013,2]
[338581116,1726746646568,-15183.09361482,0.00013,2]
[338581117,1726746646579,-1891.09879631,0.00013,2]
[338581118,1726746646591,-4822.53738327,0.00013,2]
[338581119,1726746646601,-910.07126,0.00013,2]
[338581120,1726746646663,-2577.36711834,0.00013,2]
[338581121,1726746646674,-572.85,0.00013,2]
[338581122,1726746646685,-1509.11451349,0.00013,2]
[338581123,1726746646696,-1215.25995665,0.00013,2]
[338581144,1726746745644,200.0,0.000126,4]
[338581145,1726746747923,500.0,0.000127,4]
[338581146,1726746876096,411.44,0.00010974,2]
[338581147,1726746942352,281.96,0.00013918,30]
[338581152,1726747093157,1000.0,0.00012461,2]